fUST/lending_fUST_20251110
["ID","MTS","AMOUNT","RATE_DAILY","PERIOD"]
[393496101,1762724018299,-21.55145953,0.00018172,2]
[393496102,1762724018323,-306.40940099,0.00018172,2]
[393496103,1762724019958,-245.56052025,0.00018172,2]
[393496105,1762724032789,210.09170906,0.00018072,2]
[393496106,1762724033464,-365.07516459,0.00018172,2]
[393496108,1762724035750,-288.21778454,0.00018172,2]
[393496109,1762724039384,-275.09818743,0.00018172,2]
[393496110,1762724041163,-183.50640075,0.00018172,2]
[393496112,1762724044313,-201.59698138,0.00018171,2]
[393496113,1762724046492,-98.40301862,0.00018171,2]
[393496114,1762724046520,-7.23212542,0.00018172,2]
[393496115,1762724046547,-394.36485596,0.00018172,2]
[393496116,1762724048445,-280.60124478,0.00018172,2]
[393496117,1762724050042,-200.12893284,0.00018172,2]
[393496119,1762724067156,-160.0,0.00018171,2]
[393496120,1762724067184,-2.09123032,0.00018172,2]
[393496121,1762724067757,241.3139823,0.00017218,2]
[393496129,1762724069867,5000.0,0.00018162,2]
[393496134,1762724070875,1540.50210406,0.00018072,2]
[393496143,1762724077807,246.7357627,0.000181,2]
[393496144,1762724093029,2971.45815094,0.00018162,2]
[393496145,1762724093052,2028.54184906,0.00018162,2]
[393496147,1762724116002,5000.0,0.00018111,2]
[393496149,1762724139245,5000.0,0.00018111,2]
[393496150,1762724147695,2855.84984505,0.00018111,2]
[393496151,1762724164524,4298.50053868,0.00018111,2]
[393496152,1762724187150,-158.86447604,0.0001817,2]
[393496153,1762724189530,-254.35320251,0.0001817,2]
[393496154,1762724191241,-158.4275656,0.0001817,2]
[393496155,1762724194700,-239.08528313,0.0001817,2]
[393496156,1762724194723,-16.93836696,0.0001817,2]
[393496157,1762724196898,-359.60416737,0.0001817,2]
[393496158,1762724202757,1187.27306161,0.00018111,2]
[393496159,1762724209418,-123.45746567,0.0001817,2]
[393496160,1762724209441,-144.51691882,0.0001817,2]
[393496161,1762724211675,-306.69884262,0.0001817,2]
[393496162,1762724217082,-48.78423856,0.0001817,2]
[393496163,1762724217108,-192.52974375,0.0001817,2]
[393496164,1762724219344,-295.58557204,0.0001817,2]
[393496165,1762724222071,-11.88468421,0.0001817,2]
[393496166,1762724222098,-195.96731805,0.0001817,2]
[393496167,1762724226111,1319.42478372,0.0001816,2]
[393496168,1762724226705,-300.0,0.00018169,2]
[393496169,1762724226735,-155.42158726,0.0001817,2]
[393496170,1762724232079,-148.61109469,0.0001817,2]
[393496171,1762724232105,-18.48905914,0.0001817,2]
[393496172,1762724235123,-181.19076329,0.0001817,2]
[393496173,1762724242480,5000.0,0.0001816,2]
[393496174,1762724251143,803.71250438,0.0001816,2]
[393496175,1762724260171,5000.0,0.00018111,2]
[393496176,1762724260756,-300.0,0.0001817,2]
[393496177,1762724276463,300.0,0.00018111,2]
[393496178,1762724277657,-223.4119916,0.00018169,2]
[393496179,1762724280564,187.32,0.00015225,2]
[393496180,1762724281097,-188.53636267,0.00018169,2]
[393496181,1762724285689,-261.64173171,0.00018169,2]
[393496182,1762724288527,-213.70560024,0.00018169,2]
[393496183,1762724290922,-54.70431378,0.00018169,2]
[393496184,1762724290951,-203.12647957,0.00018169,2]
[393496185,1762724299325,1089.58965029,0.00018111,2]
[393496186,1762724299962,-96.87352043,0.00018169,2]
[393496187,1762724299984,-150.0,0.00018169,2]
[393496188,1762724300005,-53.12647957,0.00018169,2]
[393496189,1762724303081,-106.87352043,0.00018169,2]
[393496190,1762724303105,-105.10738394,0.0001817,2]
[393496191,1762724305763,-231.30102742,0.0001817,2]
[393496192,1762724321984,743.28193179,0.00018159,2]
[393496193,1762724322104,-165.38600161,0.00018169,2]
[393496194,1762724324832,-1.97369659,0.00018169,2]
[393496195,1762724324856,-253.4537423,0.00018169,2]
[393496196,1762724327155,-366.95278281,0.00018168,2]
[393496197,1762724328061,246.7357627,0.000181,2]
[393496198,1762724328650,-151.46812148,0.00018168,2]
[393496199,1762724331793,-238.39793954,0.00018168,2]
[393496200,1762724333327,-227.538239,0.00018168,2]
[393496201,1762724344302,1405.17052333,0.00018159,2]
[393496202,1762724351076,1347.939341,0.00018068,2]
[393496203,1762724351841,-291.6468816,0.00018167,2]
[393496204,1762724354794,-8.3531184,0.00018167,2]
[393496205,1762724354816,-149.88165745,0.00018168,2]
[393496206,1762724358835,-166.88930777,0.00018168,2]
[393496207,1762724361019,-316.62768821,0.00018168,2]
[393496208,1762724363249,-188.60230952,0.00018168,2]
[393496209,1762724367970,1122.00096295,0.00018159,2]
[393496210,1762724368352,-153.44143793,0.00018168,2]
[393496211,1762724371626,-172.41846922,0.00018168,2]
[393496212,1762724374343,-310.34054977,0.00018168,2]
[393496213,1762724375766,5000.0,0.00018159,2]
[393496214,1762724375878,-300.84977062,0.00018168,2]
[393496215,1762724378169,-263.57189348,0.00018168,2]
[393496216,1762724382836,-353.3030437,0.00018168,2]
[393496217,1762724384178,3593.57893469,0.00018111,2]
[393496218,1762724384521,-299.40686352,0.00018168,2]
[393496219,1762724388644,-262.4581319,0.00018168,2]
[393496220,1762724391956,1853.33202824,0.00018111,2]
[393496221,1762724393064,-166.25800024,0.00018168,2]
[393496222,1762724395128,-311.46363733,0.00018168,2]
[393496223,1762724400087,1444.93480361,0.00018111,2]
[393496224,1762724415207,176.21455369,0.00018111,2]
[393496225,1762724441388,-254.84068449,0.00018162,2]
[393496226,1762724471564,150.0,0.000181,2]
[393496227,1762724482393,150.0,0.000181,2]
[393496228,1762724487144,316.62768821,0.00018152,2]
[393496229,1762724493074,150.0,0.000181,2]
[393496230,1762724502143,-33.89696954,0.00018162,2]
[393496231,1762724502166,-300.0,0.00018166,2]
[393496232,1762724502189,-58.35952485,0.00018167,2]
[393496233,1762724504299,150.0,0.000181,2]
[393496234,1762724506826,-300.0,0.00018167,2]
[393496235,1762724514771,150.0,0.000181,2]
[393496236,1762724525265,150.0,0.000181,2]
[393496237,1762724525845,150.0,0.000181,2]
[393496238,1762724535945,150.0,0.000181,2]
[393496239,1762724536083,150.0,0.000181,2]
[393496240,1762724546433,150.0,0.000181,2]
[393496241,1762724546472,150.0,0.000181,2]
[393496242,1762724556932,150.0,0.000181,2]
[393496243,1762724558014,150.0,0.000181,2]
[393496244,1762724559691,1572.67906555,0.00018157,2]
[393496245,1762724567043,150.0,0.000181,2]
[393496246,1762724568761,150.0,0.000181,2]
[393496247,1762724589256,2300.45500394,0.00018157,2]
[393496248,1762724621783,1179.44692341,0.00018066,2]
[393496249,1762724633093,2699.54499606,0.00018111,2]
[393496250,1762724649922,174.411805,0.00017177,2]
[393496251,1762724752385,-300.0,0.00018164,2]
[393496252,1762724752410,-20.75509317,0.00018164,2]
[393496253,1762724754034,-183.93793325,0.00018164,2]
[393496254,1762724756699,-38.30697358,0.00018164,2]
[393496255,1762724756722,-441.61786582,0.00018165,2]
[393496256,1762724759360,-58.38213418,0.00018165,2]
[393496257,1762724759382,-273.32328901,0.00018165,2]
[393496258,1762724761311,-19.92172748,0.00018165,2]
[393496259,1762724761335,-464.15171549,0.00018165,2]
[393496260,1762724764052,-295.31250648,0.00018164,2]
[393496261,1762724765792,-4.68749352,0.00018164,2]
[393496262,1762724765818,-35.84828451,0.00018165,2]
[393496263,1762724765845,-129.02450224,0.00018165,2]
[393496264,1762724767362,-254.39658683,0.00018165,2]
[393496265,1762724770777,-212.724126,0.00018165,2]
[393496266,1762724787214,-294.18324461,0.00018165,2]
[393496267,1762724789916,-207.74350561,0.00018165,2]
[393496268,1762724792139,-160.25587621,0.00018165,2]
[393496269,1762724792163,-40.05628284,0.00018165,2]
[393496270,1762724861196,-300.0,0.00018163,2]
[393496271,1762724861219,-24.01848466,0.00018164,2]
[393496272,1762724864556,-260.34015649,0.00018164,2]
[393496274,1762724870369,363.69234404,0.00018155,2]
[393496276,1762724897057,1032.01605801,0.00018064,2]
[393496282,1762725012735,-276.07621039,0.00018162,2]
[393496283,1762725016178,-23.92378961,0.00018162,2]
[393496284,1762725016201,-257.89349847,0.00018162,2]
[393496285,1762725018977,-314.83129476,0.00018162,2]
[393496375,1762725040430,-307.27520677,0.00018162,2]
[393496378,1762725040443,-500.0,0.00018162,2]
[393496379,1762725040452,-500.0,0.00018162,2]
[393496381,1762725040462,-1565.18275603,0.00018162,2]
[393496383,1762725040475,-500.0,0.00018162,2]
[393496385,1762725040484,-423.5603505,0.00018162,2]
[393496387,1762725040494,-500.0,0.00018162,2]
[393496389,1762725040503,-500.0,0.00018162,2]
[393496391,1762725040514,-500.0,0.00018162,2]
[393496393,1762725040524,-1565.18275603,0.00018162,2]
[393496395,1762725040533,-500.0,0.00018162,2]
[393496397,1762725040544,-500.0,0.00018162,2]
[393496399,1762725040555,-500.0,0.00018162,2]
[393496401,1762725040565,-1565.18275603,0.00018162,2]
[393496403,1762725040574,-564.52704125,0.00018162,2]
[393496405,1762725040584,-500.0,0.00018162,2]
[393496407,1762725040594,-1565.18275603,0.00018162,2]
[393496409,1762725040603,-500.0,0.00018162,2]
[393496411,1762725040613,-1565.18275603,0.00018162,2]
[393496413,1762725040623,-500.0,0.00018162,2]
[393496415,1762725040632,-500.0,0.00018162,2]
[393496417,1762725040642,-1565.18275603,0.00018162,2]
[393496419,1762725040651,-500.0,0.00018162,2]
[393496421,1762725040661,-500.0,0.00018162,2]
[393496423,1762725040670,-1565.18275603,0.00018162,2]
[393496425,1762725040680,-500.0,0.00018162,2]
[393496427,1762725040689,-190.80562691,0.00018162,2]
[393496429,1762725040699,-1565.18275603,0.00018162,2]
[393496431,1762725040708,-1565.18275603,0.00018162,2]
[393496433,1762725040718,-504.24851309,0.00018162,2]
[393496435,1762725040728,-1565.18275603,0.00018162,2]
[393496437,1762725040738,-500.0,0.00018162,2]
[393496439,1762725040747,-1565.18275603,0.00018162,2]
[393496441,1762725040756,-500.0,0.00018162,2]
[393496443,1762725040766,-1565.18275603,0.00018162,2]
[393496445,1762725040775,-500.0,0.00018162,2]
[393496447,1762725040785,-1565.18275603,0.00018162,2]
[393496449,1762725040794,-500.0,0.00018162,2]
[393496451,1762725040804,-1565.18275603,0.00018162,2]
[393496453,1762725040814,-500.0,0.00018162,2]
[393496455,1762725040823,-1565.18275603,0.00018162,2]
[393496457,1762725040839,-1565.18275603,0.00018162,2]
[393496459,1762725040853,-500.0,0.00018162,2]
[393496461,1762725040863,-1565.18275603,0.00018162,2]
[393496463,1762725040872,-500.0,0.00018162,2]
[393496465,1762725040882,-1565.18275603,0.00018162,2]
[393496467,1762725040892,-500.0,0.00018162,2]
[393496469,1762725040900,-1565.18275603,0.00018162,2]
[393496471,1762725040910,-500.0,0.00018162,2]
[393496472,1762725040919,-1565.18275603,0.00018162,2]
[393496474,1762725040928,-1565.18275603,0.00018162,2]
[393496476,1762725040938,-500.0,0.00018162,2]
[393496477,1762725040947,-1565.18275603,0.00018162,2]
[393496478,1762725040956,-191.72475962,0.00018162,2]
[393496532,1762725042205,-3e-08,0.00018162,2]
[393496533,1762725042221,-308.27524035,0.00018162,2]
[393496534,1762725042230,-1565.18275603,0.00018162,2]
[393496535,1762725042239,-1565.18275603,0.00018162,2]
[393496536,1762725042248,-500.0,0.00018162,2]
[393496537,1762725042258,-1565.18275603,0.00018162,2]
[393496538,1762725042269,-628.07986667,0.00018162,2]
[393496582,1762725046502,-937.10288936,0.00018162,2]
[393496584,1762725046512,-1565.18275603,0.00018162,2]
[393496586,1762725046522,-1565.18275603,0.00018162,2]
[393496588,1762725046531,-1565.18275603,0.00018162,2]
[393496590,1762725046541,-1565.18275603,0.00018162,2]
[393496592,1762725046550,-1565.18275603,0.00018162,2]
[393496593,1762725046559,-1565.18275603,0.00018162,2]
[393496595,1762725046569,-1565.18275603,0.00018162,2]
[393496597,1762725046579,-1565.18275603,0.00018162,2]
[393496599,1762725046588,-1565.18275603,0.00018162,2]
[393496602,1762725046598,-1565.18275603,0.00018162,2]
[393496604,1762725046608,-1565.18275603,0.00018162,2]
[393496605,1762725046616,-1565.18275603,0.00018162,2]
[393496608,1762725046626,-1565.18275603,0.00018162,2]
[393496609,1762725046635,-1565.18275603,0.00018162,2]
[393496611,1762725046644,-1565.18275603,0.00018162,2]
[393496614,1762725046654,-1565.18275603,0.00018162,2]
[393496616,1762725046663,-150.0,0.00018163,2]
[393496617,1762725046672,-2324.95273391,0.00018164,2]
[393496625,1762725046728,-7643.81399335,0.00018164,2]
[393496681,1762725047792,-948.78287777,0.00018164,2]
[393496682,1762725047803,-1283.15467251,0.00018164,2]
[393496683,1762725047815,-2068.6,0.00018164,2]
[393496684,1762725182359,903.01405075,0.00018061,2]
[393496685,1762725185974,-300.0,0.0001816,2]
[393496686,1762725201062,-166.66,0.00018161,2]
[393496687,1762725215137,999.0,0.00017201,2]
[393496688,1762725242241,300.0,0.0001816,2]
[393496689,1762725271850,8367.69,0.00018063,2]
[393496690,1762725271878,10000.01,0.00018063,2]
[393496691,1762725271904,10000.01,0.00018063,2]
[393496692,1762725271932,10000.01,0.00018063,2]
[393496693,1762725271961,10000.01,0.00018063,2]
[393496694,1762725271987,10000.01,0.00018063,2]
[393496695,1762725272017,626632.26,0.00018063,2]
[393496696,1762725280985,5000.0,0.00018111,2]
[393496697,1762725288732,5000.0,0.00018111,2]
[393496698,1762725296747,3124.39995322,0.00018111,2]
[393496699,1762725305047,5000.0,0.00018111,2]
[393496700,1762725313063,3004.84917915,0.00018111,2]
[393496701,1762725328710,5000.0,0.00018111,2]
[393496702,1762725351301,5000.0,0.00018111,2]
[393496703,1762725373662,5000.0,0.00018111,2]
[393496704,1762725395827,5000.0,0.00018111,2]
[393496707,1762725418060,1234.15976788,0.00018111,2]
[393496708,1762725441015,281116.99887824,0.00018061,2]
[393496709,1762725492129,-187.19322788,0.0001806,2]
[393496710,1762725495460,-112.80677212,0.0001806,2]
[393496711,1762725495486,-74.93795435,0.00018061,2]
[393496713,1762725582703,-258.02096477,0.00017881,2]
[393496714,1762725584343,-116.83273063,0.00017881,2]
[393496715,1762725584366,-42.56687797,0.00017935,2]
[393496716,1762725586502,-107.43312203,0.00017935,2]
[393496717,1762725586526,-91.88859899,0.0001796,2]
[393496718,1762725588806,-171.12601976,0.0001796,2]
[393496719,1762725591464,-185.04586628,0.0001796,2]
[393496720,1762725594180,-342.07680935,0.0001796,2]
[393496721,1762725594203,-103.25714128,0.00017989,2]
[393496722,1762725597331,-196.74285872,0.00017989,2]
[393496723,1762725597356,-122.84263043,0.0001799,2]
[393496724,1762725612762,-223.97224377,0.00017989,2]
[393496725,1762725615674,-76.02775623,0.00017989,2]
[393496726,1762725615695,-281.47865556,0.0001799,2]
[393496727,1762725617999,-286.22295196,0.0001799,2]
[393496728,1762725777132,-187.44755569,0.0001796,2]
[393496729,1762725777157,-16.39449828,0.00017988,2]
[393496730,1762725779264,-233.43345067,0.00017988,2]
[393496731,1762725908542,1071.72147412,0.00017888,2]
[393496732,1762725938065,307.05275883,0.00017183,2]
[393496733,1762725940300,1126.19750627,0.00017364,2]
[393496734,1762726075029,668.52352131,0.00017364,2]
[393496735,1762726077177,187.44755568,0.000179,2]
[393496736,1762726077206,2671.41999114,0.00017364,2]
[393496737,1762726083763,262.26,0.00015485,2]
[393496738,1762726176437,-300.0,0.00017984,2]
[393496739,1762726191680,-500.0,0.00017985,2]
[393496740,1762726191720,-604.78100481,0.00017985,2]
[393496741,1762726191762,-500.0,0.00017985,2]
[393496742,1762726191799,-500.0,0.00017985,2]
[393496743,1762726191839,-500.0,0.00017985,2]
[393496744,1762726191876,-500.0,0.00017985,2]
[393496745,1762726191914,-500.0,0.00017985,2]
[393496746,1762726191951,-500.0,0.00017985,2]
[393496747,1762726191984,-500.0,0.00017985,2]
[393496748,1762726192018,-259.80433736,0.00017985,2]
[393496749,1762726192174,-270.83931566,0.00017985,2]
[393496750,1762726192206,-229.39189347,0.00017985,2]
[393496751,1762726192238,-500.0,0.00017985,2]
[393496752,1762726192271,-158.73900169,0.00017985,2]
[393496753,1762726192304,-500.0,0.00017985,2]
[393496754,1762726192336,-500.0,0.00017985,2]
[393496755,1762726192365,-500.0,0.00017985,2]
[393496756,1762726192396,-500.0,0.00017985,2]
[393496757,1762726192428,-908.67102724,0.00017985,2]
[393496758,1762726192457,-908.67102724,0.00017985,2]
[393496759,1762726192609,-908.67102724,0.00017985,2]
[393496760,1762726192716,-908.67102724,0.00017985,2]
[393496761,1762726192747,-908.67102724,0.00017985,2]
[393496762,1762726192780,-908.67102724,0.00017985,2]
[393496763,1762726192812,-908.67102724,0.00017985,2]
[393496764,1762726192848,-4.62870036,0.00017985,2]
[393496765,1762726192934,-904.04232688,0.00017985,2]
[393496766,1762726192966,-908.67102724,0.00017985,2]
[393496767,1762726192996,-908.67102724,0.00017985,2]
[393496768,1762726193029,-910.64129587,0.00017985,2]
[393496769,1762726193059,-910.64129587,0.00017985,2]
[393496770,1762726193090,-4.03475793,0.00017985,2]
[393496771,1762726194681,-906.60653794,0.00017985,2]
[393496772,1762726194713,-910.64129587,0.00017985,2]
[393496773,1762726194742,-910.64129587,0.00017985,2]
[393496774,1762726194779,-910.64129587,0.00017985,2]
[393496775,1762726194819,-910.64129587,0.00017985,2]
[393496776,1762726194993,-910.64129587,0.00017985,2]
[393496777,1762726195039,-910.64129587,0.00017985,2]
[393496778,1762726195077,-910.99154252,0.00017985,2]
[393496779,1762726195113,-910.99154252,0.00017985,2]
[393496780,1762726195151,-910.99154252,0.00017985,2]
[393496781,1762726195322,-910.99154252,0.00017985,2]
[393496782,1762726195353,-910.99154252,0.00017985,2]
[393496783,1762726195385,-910.99154252,0.00017985,2]
[393496784,1762726195418,-910.99154252,0.00017985,2]
[393496785,1762726195450,-910.99154252,0.00017985,2]
[393496786,1762726200835,-910.99154252,0.00017985,2]
[393496787,1762726200869,-910.99154252,0.00017985,2]
[393496788,1762726200902,-910.99154252,0.00017985,2]
[393496789,1762726200936,-910.99154252,0.00017985,2]
[393496790,1762726200967,-910.99154252,0.00017985,2]
[393496791,1762726201088,-910.99154252,0.00017985,2]
[393496792,1762726201120,-910.99154252,0.00017985,2]
[393496793,1762726201152,-910.99154252,0.00017985,2]
[393496794,1762726201182,-910.99154252,0.00017985,2]
[393496795,1762726201212,-910.99154252,0.00017985,2]
[393496796,1762726201298,-910.99154252,0.00017985,2]
[393496797,1762726201329,-910.99154252,0.00017985,2]
[393496798,1762726201359,-910.99154252,0.00017985,2]
[393496799,1762726201388,-910.99154252,0.00017985,2]
[393496800,1762726201417,-910.99154252,0.00017985,2]
[393496801,1762726213279,1770.7803873,0.00017974,2]
[393496832,1762726232496,-300.0,0.00017984,2]
[393496834,1762726232505,-720.73647482,0.00017985,2]
[393496837,1762726236054,1667.42659747,0.00017974,2]
[393496845,1762726238450,-190.2550677,0.00017985,2]
[393496846,1762726238460,-360.6449323,0.00017985,2]
[393496847,1762726238472,-550.34661022,0.00017985,2]
[393496848,1762726238482,-910.99154252,0.00017985,2]
[393496849,1762726238492,-910.99154252,0.00017985,2]
[393496850,1762726238501,-910.99154252,0.00017985,2]
[393496851,1762726238510,-910.99154252,0.00017985,2]
[393496852,1762726238520,-910.99154252,0.00017985,2]
[393496853,1762726238529,-910.99154252,0.00017985,2]
[393496854,1762726238539,-910.99154252,0.00017985,2]
[393496856,1762726238548,-910.99154252,0.00017985,2]
[393496857,1762726238559,-910.99154252,0.00017985,2]
[393496858,1762726238568,-910.99154252,0.00017985,2]
[393496859,1762726238578,-910.99154252,0.00017985,2]
[393496860,1762726238587,-910.99154252,0.00017985,2]
[393496861,1762726238597,-910.99154252,0.00017985,2]
[393496862,1762726238606,-882.5531822,0.00017985,2]
[393496863,1762726238616,-882.5531822,0.00017985,2]
[393496864,1762726238625,-882.5531822,0.00017985,2]
[393496865,1762726238635,-882.5531822,0.00017985,2]
[393496866,1762726238644,-882.5531822,0.00017985,2]
[393496867,1762726238654,-873.72765038,0.00017985,2]
[393496868,1762726238663,-873.72765038,0.00017985,2]
[393496869,1762726238673,-873.72765038,0.00017985,2]
[393496870,1762726238682,-873.72765038,0.00017985,2]
[393496871,1762726238693,-873.72765038,0.00017985,2]
[393496872,1762726238703,-500.0,0.00017985,2]
[393496873,1762726238712,-846.42366131,0.00017985,2]
[393496874,1762726238721,-846.42366131,0.00017985,2]
[393496875,1762726238731,-846.42366131,0.00017985,2]
[393496876,1762726238740,-846.42366131,0.00017985,2]
[393496877,1762726238750,-872.0,0.00017985,2]
[393496878,1762726238761,-150.0,0.00017985,2]
[393496879,1762726238771,-910.63979015,0.00017986,2]
[393496880,1762726238780,-910.63979015,0.00017986,2]
[393496881,1762726238790,-910.63979015,0.00017986,2]
[393496882,1762726238801,-71461.12206957,0.0001799,2]
[393496883,1762726238811,-500.0,0.00018,2]
[393496884,1762726238821,-1129.22389897,0.00018009,2]
[393496885,1762726238830,-404.39781575,0.00018061,2]
[393496886,1762726238840,-500.0,0.00018061,2]
[393496887,1762726238852,-67492.02455427,0.00018061,2]
[393496888,1762726238864,-1561.8133821,0.00018061,2]
[393496894,1762726240579,-2399.8977101,0.00018061,2]
[393496895,1762726240784,-3e-08,0.00018061,2]
[393496896,1762726240797,-20820.32835206,0.00018061,2]
[393496909,1762726246981,-1948.70908906,0.000179,2]
[393496910,1762726246991,-311533.99916885,0.00018061,2]
[393496911,1762726247000,-500.0,0.00018073,2]
[393496912,1762726247010,-150.0,0.000182,2]
[393496913,1762726247019,-150.0,0.000182,2]
[393496914,1762726247029,-150.0,0.000182,2]
[393496915,1762726247039,-487.69093618,0.00018263,2]
[393496916,1762726247048,-337.94569367,0.0001829,2]
[393496917,1762726247058,-1000.0,0.00018621,2]
[393496918,1762726247069,-222.26894486,0.00018895,2]
[393496919,1762726247079,-289.02663281,0.00018953,2]
[393496920,1762726247088,-260.748,0.00018968,2]
[393496921,1762726247098,-895.13639254,0.00019096,2]
[393496922,1762726247107,-1577.14543176,0.00019168,2]
[393496923,1762726247116,-50000.0,0.00019168,2]
[393496924,1762726247126,-420.0,0.00019623,2]
[393496925,1762726247137,-177.0,0.00019985,2]
[393496926,1762726247147,-1690.0,0.00020416,2]
[393496927,1762726247156,-1690.0,0.00020574,2]
[393496928,1762726247166,-1690.0,0.00020584,2]
[393496929,1762726247175,-611.95,0.00020741,2]
[393496930,1762726247185,-1243.0,0.00020841,2]
[393496931,1762726247195,-1690.0,0.00020892,2]
[393496932,1762726247205,-1690.0,0.00020944,2]
[393496933,1762726247215,-1690.0,0.00021041,2]
[393496934,1762726247225,-1690.0,0.00021197,2]
[393496935,1762726247235,-1690.0,0.00021264,2]
[393496936,1762726247244,-1243.0,0.00021399,2]
[393496937,1762726247254,-587.0,0.00021411,2]
[393496938,1762726247264,-1690.0,0.00021477,2]
[393496939,1762726247274,-1690.0,0.00021576,2]
[393496940,1762726247283,-234.63362686,0.00021607,2]
[393496941,1762726247293,-2971.6194263,0.00021618,2]
[393496942,1762726247303,-1690.0,0.00021667,2]
[393496943,1762726247314,-1690.0,0.0002181,2]
[393496944,1762726247324,-1690.0,0.00021888,2]
[393496945,1762726247334,-1690.0,0.00021892,2]
[393496946,1762726247343,-500.0,0.00021918,2]
[393496947,1762726247352,-1690.0,0.00021973,2]
[393496949,1762726247362,-500.0,0.00021973,2]
[393496950,1762726247372,-204.0,0.00021985,2]
[393496951,1762726247381,-1690.0,0.0002199,2]
[393496952,1762726247391,-153.57,0.00022,7]
[393496953,1762726247400,-3430.99,0.00022,7]
[393496954,1762726247409,-1386.9814996,0.00022027,2]
[393496955,1762726247418,-500.0,0.00022028,2]
[393496956,1762726247427,-1690.0,0.0002204,2]
[393496957,1762726247441,-1690.0,0.00022066,2]
[393496958,1762726247451,-1690.0,0.00022075,2]
[393496959,1762726247460,-500.0,0.00022082,2]
[393496960,1762726247469,-1690.0,0.00022098,2]
[393496961,1762726247478,-1243.0,0.00022133,2]
[393496962,1762726247487,-500.0,0.00022137,2]
[393496963,1762726247497,-500.0,0.00022192,2]
[393496964,1762726247507,-500.0,0.00022247,2]
[393496965,1762726247516,-500.0,0.00022302,2]
[393496966,1762726247525,-1243.0,0.00022332,2]
[393496967,1762726247534,-275.39840939,0.00022356,2]
[393496968,1762726247543,-1690.0,0.00022363,2]
[393496969,1762726247553,-151.0,0.00023288,7]
[393496970,1762726247564,-151.0,0.00023288,7]
[393496971,1762726247573,-823.0,0.00023362,2]
[393496972,1762726247582,-1155.76151907,0.00023642,2]
[393496973,1762726247591,-231.0,0.00023985,2]
[393496974,1762726247601,-1038.43503518,0.00024,5]
[393496975,1762726247610,-500.0,0.00024658,2]
[393496976,1762726247619,-500.0,0.00024713,2]
[393496977,1762726247628,-535.0,0.00024768,2]
[393496978,1762726247637,-151.0,0.000248,7]
[393496979,1762726247646,-151.0,0.000248,7]
[393496980,1762726247655,-151.0,0.000248,7]
[393496981,1762726247665,-151.0,0.000248,7]
[393496982,1762726247674,-153.018556,0.000248,7]
[393496983,1762726247683,-153.018556,0.000248,7]
[393496984,1762726247692,-153.018556,0.000248,7]
[393496985,1762726247701,-153.018556,0.000248,7]
[393496986,1762726247710,-151.0,0.000248,7]
[393496987,1762726247720,-151.0,0.000248,7]
[393496988,1762726247729,-151.0,0.000248,7]
[393496989,1762726247738,-151.0,0.000248,7]
[393496990,1762726247747,-167.26938,0.000248,7]
[393496991,1762726247757,-151.0,0.000248,7]
[393496992,1762726247766,-151.0,0.000248,7]
[393496993,1762726247775,-151.0,0.000248,7]
[393496994,1762726247784,-151.0,0.000248,7]
[393496995,1762726247794,-151.0,0.000248,7]
[393496996,1762726247803,-151.0,0.000248,7]
[393496997,1762726247813,-151.0,0.000248,7]
[393496998,1762726247823,-151.0,0.000248,7]
[393496999,1762726247832,-151.0,0.000248,7]
[393497000,1762726247842,-151.0,0.000248,7]
[393497001,1762726247856,-151.0,0.000248,7]
[393497002,1762726247865,-151.0,0.000248,7]
[393497003,1762726247874,-204.823134,0.000248,7]
[393497004,1762726247883,-154.422193,0.000248,7]
[393497005,1762726247894,-152.519229,0.000248,7]
[393497006,1762726247904,-151.0,0.000248,7]
[393497007,1762726247913,-151.0,0.000248,7]
[393497008,1762726247923,-153.161496,0.000248,7]